Cogmind - Beta 16 @@@ ROGUE MODE // 2025.11.18 @ 22:11:09 // Winter2019/RPGLIKE Player: Rentaro Result: Self-destructed Performance ------------- Evolutions (2) 1000 Regions Visited (4) 800 Robots Destroyed (65) 325 Value Destroyed (1878) 1878 Prototype IDs (13) 260 Alien Tech Used (0) 0 Bonus (49) 49 TOTAL SCORE: 4312 Bonus ------- High Alert Combat Kills 49 Cogmind --------- Core Integrity 496/600 Matter 243/300 Energy 125/125 System Corruption 0% Temperature Cool (0) Movement Flying (31) Location -8/Materials Parts ------- > --- POWER (1) -------- Light Ion Engine > --- PROPULSION (4) --- Flight Unit Flight Unit Flight Unit Flight Unit > --- UTILITY (4) ------ Structural Scanner Subdweller Optics Scrap Shield > --- WEAPON (4) ------- Assault Rifle Assault Rifle Light Assault Rifle Light Assault Rifle > --- INVENTORY (2) ---- Rocket Launcher Peak State ------------ > --- POWER ------------ Light Ion Engine > --- PROPULSION ------- Flight Unit Flight Unit Flight Unit Flight Unit > --- UTILITY ---------- Weight Redist. System Structural Scanner Power Bank > --- WEAPON ----------- Assault Rifle Assault Rifle Light Assault Rifle Rocket Launcher > --- INVENTORY -------- Light Assault Rifle [Rating: 22] Favorites ----------- Power Light Ion Engine Engine Light Ion Engine Propulsion Flight Unit Wheel Compact Wheel Flight Unit Flight Unit Utility Structural Scanner Device Structural Scanner Processor Signal Interpreter Protection Scrap Shield Weapon Assault Rifle Energy Gun EM Pulse Gun Energy Cannon Beam Cannon Ballistic Gun Assault Rifle Ballistic Cannon Light Cannon Launcher Rocket Launcher Build | -11 -10 -10 -10 -8 ------- Run | Yrd Mat Min Sub Mat Slots Evolved 9 | 4 1 3 1 . Power . | . . . . . Propulsion 3 | 1 1 1 . . Utility 3 | 1 . 1 1 . Weapon 3 | 2 . 1 . . Parts Attached 30 | 6 16 4 4 . Power 2 | 1 1 . . . Engine 2 | 1 1 . . . Core . | . . . . . Reactor . | . . . . . Propulsion 7 | 2 3 2 . . Treads . | . . . . . Leg . | . . . . . Wheel 2 | 2 . . . . Hover . | . . . . . Flight 5 | . 3 2 . . Utility 10 | . 6 . 4 . Device 8 | . 5 . 3 . Storage . | . . . . . Processor 1 | . 1 . . . Hackware . | . . . . . Protection 1 | . . . 1 . Artifact . | . . . . . Weapon 11 | 3 6 2 . . Energy Gun 2 | 1 1 . . . Energy Cannon 1 | . 1 . . . Ballistic Gun 6 | 2 3 1 . . Ballistic Cannon 1 | . 1 . . . Launcher 1 | . . 1 . . Special Weapon . | . . . . . Impact Weapon . | . . . . . Slashing Weapon . | . . . . . Piercing Weapon . | . . . . . Special Melee Weapon . | . . . . . Unidentified Prototypes 1 | . 1 . . . Parts Lost . | . . . . . Power . | . . . . . Propulsion . | . . . . . Utility . | . . . . . Weapon . | . . . . . Highest Loss Streak . | . . . . . To Critical Strikes . | . . . . . Average Backups . | . . 1 1 1 Power . | . . . . . Propulsion . | . . . . . Utility . | . . . . . Weapon . | . . 1 1 1 Tool/Special . | . . . . . Unused Backups 1 | . 1 . . . Power . | . . . . . Propulsion . | . . . . . Utility 1 | . 1 . . . Weapon . | . . . . . Tool/Special . | . . . . . Average Slot Usage (%) 92 | . 94 90 91 92 Engine 9 | . 11 9 7 7 Flight 29 | . 27 32 31 30 Device 17 | . 18 19 15 15 Protection 1 | . . . 3 7 Energy Cannon 3 | . 6 3 . . Ballistic Gun 26 | . 26 25 27 30 Launcher 1 | . . . 3 . Peak Build Rating 22 | 6 10 13 22 16 Average Rating 11 | 4 9 10 14 16 On Entrance 9 | . 6 10 13 16 Avg Prop Armor Cover (%) . | . . . . . Naked Turns . | . . . . . Heaviest Build 33 | 8 11 13 33 30 Greatest Support 37 | 37 37 21 31 31 Greatest Overweight (x) 1 | . . . 1 . Average Overweight (x) . | . . . . . Largest Inventory Capacity 2 | 1 1 2 2 2 Average Capacity 1 | . 1 1 2 2 Most Carried 2 | . 1 2 2 1 Average Carried . | . . 1 1 1 Final Capacity 2 | 1 1 2 2 2 Final Carried 2 | . 1 2 1 1 Class Distribution -------------------- 44% | Scavenger-Gunner 35% | Scavenger-Sprinter 20% | Gunner Dominant Class ---------------- Scavenger-Gunner | -10/Materials Scavenger-Gunner | -10/Mines Scavenger-Sprinter | -10/Subcaves Scavenger-Sprinter | -8/Materials Resources | -11 -10 -10 -10 -8 ----------- Run | Yrd Mat Min Sub Mat Matter Collected 2014 | 93 699 197 1025 . Remotely . | . . . . . Salvage Created 1343 | . 862 172 309 . Parts 135 | . 66 23 46 . Haulers Intercepted 2 | . 2 . . . Recyclers Shooed . | . . . . . Parts Field Recycled . | . . . . . Retrieved Matter . | . . . . . Parts Self-Destructed 25 | . . . 25 . Prevented . | . . . . . Parts Restored . | . . . . . Kills | -11 -10 -10 -10 -8 ------- Run | Yrd Mat Min Sub Mat Combat Hostiles Destroyed 53 | . 18 14 21 . Guns 41 | . 14 9 18 . Cannons 7 | . 2 5 . . AOE 5 | . 2 . 3 . Classes Destroyed 10 | . 7 1 2 . Worker 1 | . 1 . . . Builder 3 | . 3 . . . Tunneler 1 | . . 1 . . Hauler 2 | . 2 . . . Recycler 2 | . 1 1 . . Watcher 3 | . 3 . . . Swarmer 21 | . 3 14 4 . Grunt 19 | . 15 . 4 . Artisan 1 | . . . 1 . Subdweller 13 | . . . 13 . Best Kill Streak 10 | . 10 5 6 . Combat Bots Only 7 | . 7 5 6 . Max Kills in Single Turn 3 | . 3 2 1 . Gunslinging 2 | . 2 1 . . Exploded 1 | . 1 . 1 . Melee . | . . . . . Uniques/NPCs Destroyed . | . . . . . Combat | -11 -10 -10 -10 -8 -------- Run | Yrd Mat Min Sub Mat Hostile Shots Fired 207 | . 70 60 77 . Missed 75 | . 28 19 28 . Hits 132 | . 42 41 49 . Projectile 132 | . 42 41 49 . AOE 6 | . . . 6 . Critical Strikes 4 | . 1 . 3 . Damage Taken 2111 | . 520 352 1239 . Core 1674 | . 422 280 972 . Absorbed by Shields . | . . . . . Redirected to Core 1261 | . 312 223 726 . Core Remaining (%) 91 | 100 . . 82 . Volleys Fired 300 | . 174 32 94 . Largest 4 | . 3 3 4 . Hottest 100 | . 100 100 93 . Shots Fired 594 | . 267 78 249 . Gun 397 | . 138 53 206 . Cannon 153 | . 129 24 . . Launcher 44 | . . 1 43 . Special . | . . . . . Kinetic 391 | . 132 53 206 . Thermal 141 | . 117 24 . . Explosive 44 | . . 1 43 . Electromagnetic 18 | . 18 . . . Robot Hit Streak 22 | . 13 5 22 . Robot Miss Streak 7 | . 2 7 5 . Penetration Max . | . . . . . Secondary Targets 8 | . 4 3 1 . Max Gunslinging Chain 2 | . 2 1 1 . Shots Hit Robots 263 | . 94 34 135 . Core Hits 117 | . 49 19 49 . Critical Kills 3 | . . . 3 . Critical Parts Destroyed . | . . . . . Critical Strikes 3 | . . . 3 . Destroy 3 | . . . 3 . Melee Attacks . | . . . . . Impact . | . . . . . Slashing . | . . . . . Piercing . | . . . . . Sneak Attacks . | . . . . . Combat Hostiles . | . . . . . Follow-up Attacks . | . . . . . Damage Inflicted 4268 | . 1874 553 1841 . Guns 2579 | . 988 279 1312 . Cannons 261 | . 86 175 . . Explosions 1428 | . 800 99 529 . Melee . | . . . . . Ramming . | . . . . . Kinetic 2381 | . 790 279 1312 . Thermal 711 | . 536 175 . . Explosive 978 | . 350 99 529 . Electromagnetic 198 | . 198 . . . Impact . | . . . . . Slashing . | . . . . . Piercing . | . . . . . Highest Corruption . | . . . . . Average Corruption . | . . . . . Corruption Purged . | . . . . . Corruption Blocked . | . . . . . Overload Shots . | . . . . . Overflow Damage 150 | . 134 16 . . Projectiles 16 | . . 16 . . Explosions 134 | . 134 . . . Melee . | . . . . . Knockbacks . | . . . . . Impact . | . . . . . Kinetic . | . . . . . Secondary . | . . . . . Self-Inflicted Damage 43 | . . . 43 . Shots 2 | . . . 2 . Rammed . | . . . . . Targets Rammed . | . . . . . Kicked . | . . . . . Crushed . | . . . . . Highest Temperature 322 | . 322 203 269 . Average Temperature 85 | . 87 76 121 . Received Heat Transfer 810 | . 294 9 507 . Effects 3 | . 3 . . . Interference 2 | . 2 . . . Short Circuit 1 | . 1 . . . Siege Activations . | . . . . . Martial Activations . | . . . . . Shielding Activations . | . . . . . Robots Disrupted . | . . . . . Combat Hostiles . | . . . . . Robots Corrupted . | . . . . . Combat Hostiles . | . . . . . Parts Fried . | . . . . . Impact Corruptions . | . . . . . Robots Melted . | . . . . . Combat Hostiles . | . . . . . Parts Melted 3 | . 1 2 . . Heat Transferred 1005 | . 635 370 . . Parts Sabotaged . | . . . . . Parts Stolen . | . . . . . Parts Stripped . | . . . . . Power Chain Reactions 3 | . 3 . . . Alert | -11 -10 -10 -10 -8 ------- Run | Yrd Mat Min Sub Mat Maximum Alert Level 2 | . 2 2 . . Low Security (%) 16 | 100 18 . . 100 Level 1 19 | . 16 32 . . Level 2 64 | . 65 67 . . Level 3 . | . . . . . Level 4 . | . . . . . Level 5 . | . . . . . High Security . | . . . . . Max Security . | . . . . . Peak Influence 672 | . 672 522 . 22 Initial 257 | . . 257 . 22 Average 414 | . 428 417 . 22 Influence Increases 1938 | . 1193 400 345 . Destroy 0b10 Robot/C 800 | . 360 280 160 . Destroy 0b10 Robot/NC 60 | . 50 10 . . Destroy Leader 160 | . 90 50 20 . Successful Hack 44 | . 44 . . . Select Force Hacks 30 | . 30 . . . Disable Machine 525 | . 465 60 . . Destroy Structure 124 | . 124 . . . Lose Combat Pursuer 195 | . 30 . 165 . Influence Decreases 1916 | . 532 650 713 21 Entered New Map 640 | . . 404 215 21 Time Decay 1256 | . 512 246 498 . Lost Ally 20 | . 20 . . . Squads Dispatched 4 | . 4 . . . Investigation 4 | . 4 . . . Extermination . | . . . . . Reinforcement . | . . . . . Assault . | . . . . . Garrison . | . . . . . Intercept . | . . . . . Searches Triggered . | . . . . . Construction Impeded . | . . . . . Haulers Reinforced . | . . . . . Active Scanning Responses . | . . . . . Cargo Convoy Interrupts . | . . . . . Stealth | -11 -10 -10 -10 -8 --------- Run | Yrd Mat Min Sub Mat Distress Signals 2 | . 2 . . . Communications Jammed . | . . . . . Distress Signals . | . . . . . Times Spotted 72 | . 25 14 33 . Peak Tracking Total 8 | . 8 3 8 . Tactical Retreats 7 | . 3 . 4 . Traps | -11 -10 -10 -10 -8 ------- Run | Yrd Mat Min Sub Mat Traps Triggered 5 | . 3 . 2 . Indirectly 1 | . 1 . . . Trap Hack Attempts . | . . . . . Triggered . | . . . . . Disarmed . | . . . . . Reprogrammed . | . . . . . Reused . | . . . . . Traps Extracted . | . . . . . Installed . | . . . . . Triggered . | . . . . . Objects Rigged 6 | . 6 . . . Exploded 2 | . 2 . . . Machines | -11 -10 -10 -10 -8 ---------- Run | Yrd Mat Min Sub Mat Machines Disabled 37 | . 31 4 2 . Max in Single Turn 3 | . 3 1 2 . Machines Repaired . | . . . . . Machines Dismantled . | . . . . . Machines Sabotaged . | . . . . . Overloaded Fab Kills . | . . . . . Hacking | -11 -10 -10 -10 -8 --------- Run | Yrd Mat Min Sub Mat Machines Accessed 12 | . 10 . 2 . Terminals 8 | . 8 . . . Fabricators . | . . . . . Repair Stations . | . . . . . Recycling Units 2 | . 2 . . . Scanalyzers . | . . . . . Garrison Access . | . . . . . Total Hacks 44 | . 31 . 13 . Successful 29 | . 16 . 13 . Failed 15 | . 15 . . . Catastrophic 2 | . 2 . . . Database Lockouts . | . . . . . Manual 27 | . 27 . . . Terminals 25 | . 25 . . . Fabricators . | . . . . . Repair Stations . | . . . . . Recycling Units 6 | . 6 . . . Scanalyzers . | . . . . . Garrison Access . | . . . . . Terminal Hacks 15 | . 2 . 13 . Record 12 | . . . 12 . Level Access Points 1 | . 1 . . . Branch Access Points 1 | . 1 . . . Proto ID Catalog 1 | . . . 1 . Fabricator Hacks . | . . . . . Repair Station Hacks . | . . . . . Recycling Unit Hacks 2 | . 2 . . . Retrieve Components 2 | . 2 . . . Scanalyzer . | . . . . . Garrison Access Hacks . | . . . . . Unauthorized Hacks 12 | . 12 . . . Terminals 11 | . 11 . . . Assimilate 2 | . 2 . . . Botnet 4 | . 4 . . . Detonate 4 | . 4 . . . Operators 1 | . 1 . . . Fabricators . | . . . . . Repair Stations . | . . . . . Recycling Units 1 | . 1 . . . Tunnel 1 | . 1 . . . Scanalyzers . | . . . . . Garrison Access . | . . . . . Data Cores Recovered . | . . . . . Used . | . . . . . Hacking Detections 10 | . 10 . . . Full Trace Events 2 | . 2 . . . Feedback Events . | . . . . . Feedback Blocked . | . . . . . Robot Schematics Acquired . | . . . . . Robots Built . | . . . . . Authchips . | . . . . . Time . | . . . . . Total Robot Build Rating . | . . . . . Part Schematics Acquired . | . . . . . Parts Built . | . . . . . Authchips . | . . . . . Time . | . . . . . Total Part Build Rating . | . . . . . Part Studies Acquired . | . . . . . Parts Repaired . | . . . . . Time . | . . . . . Parts Recycled . | . . . . . Recycled Matter . | . . . . . Retrieved Matter . | . . . . . Retrieved Components 12 | . 12 . . . Parts Scanalyzed . | . . . . . Part Schematics Acquired . | . . . . . Parts Damaged . | . . . . . Bothacking | -11 -10 -10 -10 -8 ------------ Run | Yrd Mat Min Sub Mat Used RIF Installer . | . . . . . Robots Hacked . | . . . . . Non-combat . | . . . . . Combat . | . . . . . Robot Hacks Applied . | . . . . . Relay Couplers Released . | . . . . . Fabnet Peak Effective % . | . . . . . Robots Rewired . | . . . . . Allies Hacked . | . . . . . Hacks Repelled . | . . . . . Allies | -11 -10 -10 -10 -8 -------- Run | Yrd Mat Min Sub Mat Total Allies 2 | . 2 . . . Largest Group 2 | . 2 . . . Highest-Rated Group 20 | . 20 . . . Highest-Rated Ally 10 | . 10 . . . Total Orders . | . . . . . Ally Attacks . | . . . . . Total Damage . | . . . . . Kills . | . . . . . Allies Corrupted . | . . . . . Allies Melted . | . . . . . Intel | -11 -10 -10 -10 -8 ------- Run | Yrd Mat Min Sub Mat Active Infowar (turns) 3219 | . 1355 535 1322 7 Optics 681 | . . . 674 7 Sensors 11 | . 11 . . . Structural 3219 | . 1355 535 1322 7 Robot Analysis Total . | . . . . . Derelict Logs Recovered 4 | . . 2 2 . Drone Launches . | . . . . . Drone Recoveries . | . . . . . Exploration | -11 -10 -10 -10 -8 ------------- Run | Yrd Mat Min Sub Mat Turns Passed 3586 | 55 1667 535 1322 7 Spaces Moved 5007 | 60 1645 872 2422 8 Core 27 | 27 . . . . Treads . | . . . . . Legs . | . . . . . Wheels 121 | 33 88 . . . Hover . | . . . . . Flight 4859 | . 1557 872 2422 8 Fastest Speed 31 | 50 34 31 31 31 Average Speed 37 | 77 39 32 37 31 Slowest Speed 111 | 100 100 34 111 31 Overloaded Moves . | . . . . . Propulsion Burnouts . | . . . . . Robots Hopped 15 | . 7 7 1 . Potential Cave-ins 1 | . . . 1 . Cave-ins Triggered . | . . . . . Exploration Rate (%) 59 | 4 99 98 96 2 Regions Visited 4 Branch Regions 2 Pre-discovered Areas 4 | . 1 2 1 . Known Exits Taken 2 | . 1 1 . . Unknown Exits Taken 2 | 1 . . 1 . Scrap Searched 13 | . . 2 11 . Spaces Dug 44 | . . . 44 . Terrain Destroyed 421 | . 128 . 293 . Melee . | . . . . . Projectile . | . . . . . AOE 421 | . 128 . 293 . Terrain Rammed . | . . . . . Walls Destroyed . | . . . . . Machines Disabled . | . . . . . Actions | -11 -10 -10 -10 -8 --------- Run | Yrd Mat Min Sub Mat Total 6226 | 65 2429 1056 2664 12 Wait 749 | . 555 134 56 4 Move 4973 | 59 1630 857 2419 8 Hop 15 | . 7 7 1 . Pick Up 11 | . 7 1 3 . Fast Attach 19 | 6 8 2 3 . Attach 5 | . 3 . 2 . Detach 3 | . 1 . 2 . Swap 30 | . 12 5 13 . Drop 19 | . 12 1 6 . Fire 300 | . 174 32 94 . Melee . | . . . . . Ram . | . . . . . Kick . | . . . . . Crush . | . . . . . Escape Stasis . | . . . . . Rewire . | . . . . . Trap . | . . . . . Miscellaneous 102 | . 20 17 65 . Route ------- -11/Scrapyard -10/Materials (discovered 5 exits: *Mat x3 / *Min / *Sub) -10/Mines (discovered 3 exits: *Mat x2 / *Sub) -10/Subcaves (discovered 3 exits: [*Mat x2] / [*Rec]) -8/Materials (discovered 1 exit: Sto) History --------- Turn | Location | Event 3 | -11/Scrapyard | Upgraded with Propulsion slot (x1) 3 | -11/Scrapyard | Upgraded with Utility slot (x1) 3 | -11/Scrapyard | Upgraded with Weapon slot (x2) 6 | -11/Scrapyard | Discovered new exit (range 16) 56 | -11/Scrapyard | Entered Materials 237 | -10/Materials | Destroyed 7 combat bots 282 | -10/Materials | Discovered new exit (range 9) 314 | -10/Materials | Discovered new exit (range 6) 315 | -10/Materials | Build established: Gunner 320 | -10/Materials | Discovered new exit (range 7) 425 | -10/Materials | Discovered new exit (range 6) 465 | -10/Materials | Discovered new exit (range 16) 485 | -10/Materials | Reached level 2 508 | -10/Materials | Identified exit to Materials 508 | -10/Materials | Identified exit to Mines 528 | -10/Materials | Upgraded with Propulsion slot (x1) 699 | -10/Materials | Identified exit to Subcaves 847 | -10/Materials | Reached level 3 856 | -10/Materials | Derelicts attacked the area 1042 | -10/Materials | Build established: Scavenger-Gunner 1607 | -10/Materials | Reached level 4 1723 | -10/Materials | Entered Mines 1727 | -10/Mines | Met a Derelict bent on vengeance 1757 | -10/Mines | Upgraded with Utility slot (x1) 1804 | -10/Mines | Learned location of Storage (-8) 1818 | -10/Mines | Discovered exit to Subcaves (range 12) 1844 | -10/Mines | Received a Rocket Launcher from a helpful Derelict 1845 | -10/Mines | Reached level 5 1854 | -10/Mines | Discovered exit to Materials (range 12) 1980 | -10/Mines | Discovered exit to Materials (range 2) 2012 | -10/Mines | Upgraded with Propulsion slot (x1) 2186 | -10/Mines | Upgraded with Weapon slot (x1) 2258 | -10/Mines | Entered Subcaves 2260 | -10/Subcaves | Reached level 6 2283 | -10/Subcaves | Discovered new exit (range 6) 2299 | -10/Subcaves | Build established: Scavenger-Sprinter 2317 | -10/Subcaves | Core integrity fell below 50% 2407 | -10/Subcaves | Shifting Twisted Machinery released Shrapnel Trap 2409 | -10/Subcaves | Shifting Twisted Machinery released Sub. Machine Gun 2459 | -10/Subcaves | Discovered new exit (range 18) 2466 | -10/Subcaves | Learned location of Zion (-6) 2466 | -10/Subcaves | Met a Zionite searching for "candidates" 2491 | -10/Subcaves | Discovered new exit (range 15) 2605 | -10/Subcaves | Shifting Twisted Machinery released Battle Cannon 2606 | -10/Subcaves | Shifting Twisted Machinery released Flamer 2619 | -10/Subcaves | Ambushed by Subdwellers from Twisted Machinery 2668 | -10/Subcaves | Visited 4L-MR0's lab 2675 | -10/Subcaves | Found Power Bank 2677 | -10/Subcaves | Attached Power Bank, gained temporary slots: Power x3 2708 | -10/Subcaves | A swath of the cavern ceiling suddenly collapsed 2921 | -10/Subcaves | Upgraded with Utility slot (x1) 3245 | -10/Subcaves | A swath of the cavern ceiling suddenly collapsed 3462 | -10/Subcaves | Learned Materials trap positions 3513 | -10/Subcaves | Visited Clippyterm 3516 | -10/Subcaves | Learned Factory fabricator intel 3516 | -10/Subcaves | Learned Research security intel 3580 | -10/Subcaves | Entered Materials 3581 | -8/Materials | Identified exit to Storage 3582 | -8/Materials | Loaded intel: 9 trap records 3582 | -8/Materials | Reached level 7 3587 | -8/Materials | Self-destructed Last Messages --------------- how much data I collect to feed it, half the time it still manages to suggest unhelpful sample queries and responses. --DD-NU8 >>Record "Authchips" It looks like you're interested in fabrication without breaking the rules, would you like help? Data stored: Factory fabricator intel. >>Record "0b10 Defenses" It looks like you're afraid of guards, would you like help? Data stored: Research security intel. >>Record! "Tab" It looks like you're biased against spaces, I think you need more help than I can offer. 03551_ The unstable cave ceiling collapses. 03577_ Acquired 79 matter. LOCATION=UNKNOWN GOAL=ESCAPE Loading 1 Storage entrance... Loading Materials trap records (x9)... 03582_ Reached level 7. Map ----- +----------------------------------------------------+ | ????????????????????????????????????? | | ????????????????????????????????????? | | ????????????????????????????????????? | | ????????????????????????????????????? | | ????????????????????????????????????? | | ???????????????????? ??????????????? | | ???????????????????? ??????????????? | | ???????????????????? ??????????????? | | ?????????????????? # ??????????????? | | ?????????????????? + ??????????????? | | ?????????????????? # ??????????????? | | ?????????????????? # ??????????????? | | ?????????????????? # ??????????????? | | ?????????????????? # ##????????????? | | ??????????????????## ##????????????? | | ??????????????????## ##????????????? | | ??????????????????## ##????????????? | | ??????????????????## ##????????????? | | ??????????????????## ##????????????? | | ??????????????????## ##????????????? | | ??????????????????## ##????????????? | | ??????????????????## ##????????????? | | ?????? ##???######## #######???????? | | ?????? # ####### #######???????? | | ?????? # ##???????? | | ?????? + @ ##???????? | | ?????? # ##???????? | | ?????? # ###+############???????? | | ?????? ##???## ## ##???????? | | ????????????????????????????????????? | | ????????????????????????????????????? | | ????????????????????????????????????? | | ????????????????????????????????????? | | ????????????????????????????????????? | | ????????????????????????????????????? | | ????????????????????????????????????? | | ????????????????????????????????????? | | ????????????????????????????????????? | | ????????????????????????????????????? | | ????????????????????????????????????? | | ????????????????????????????????????? | | ????????????????????????????????????? | | ????????????????????????????????????? | | ??????????????????????????^?????????? | | ????????????????????????????????????? | | ????????????????????????????????????? | | ????????????????????????????????????? | | ????????????????????????????????????? | | ????????????????????????????????????? | | ????????????????????????????????????? | +----------------------------------------------------+ Best States ------------- Heat Dissipation 41 Energy Generation 15 Energy Capacity 250 Matter Stores 300 Matter Capacity 300 Sight Range 21 Robot Scan Range 14 Terrain Scan Density 10 Additional Mass Support 6 Armor Coverage 800 Evasion (%) 63 Item Schematics ----------------- None Robot Schematics ------------------ None Fabricated ------------ Nothing Repaired ---------- Nothing Studied --------- None Alien Tech Used ----------------- None Achievements -------------- Art Critic Challenges ------------ None RPGLIKE | -11 -10 -10 -10 -8 --------- Run | Yrd Mat Min Sub Mat Levels Raised 6 | . 3 1 1 1 XP Earned 12554 | 3000 4872 2053 1129 1500 XP Spent 10500 | 3000 1200 3500 2800 . Upgrades 17 | 8 2 4 3 . Propulsion Slot 3 | 1 1 1 . . Utility Slot 3 | 1 . 1 1 . Weapon Slot 3 | 2 . 1 . . Heat Dissipation 1 | 1 . . . . Energy Generation 1 | 1 . . . . Mass Support 3 | 1 . . 2 . Inventory Capacity 2 | 1 . 1 . . Ranged Accuracy 1 | . 1 . . . Protomatter Created 764 | . 174 111 479 . Integrity Restored 1937 | . 417 288 1232 . Core 1570 | . 315 288 967 . Parts 367 | . 102 . 265 . Protomatter Decayed 199 | . 141 . 58 . Game ------ Seed NetworkSwarmMultitool Manual? 0 Play Time 00:47:41 Cumulative 194.9 hours Start 2025.11.18 @ 20:41:59 End 2025.11.18 @ 22:11:09 Sessions 4 Manual Loads 0 Difficulty Rogue Special Mode Winter2019/RPGLIKE Game No. 60 Rogue 60 Adventurer 0 Explorer 0 Win Type - Total 7 Types 2/1/1/3/0/0/0/0/0/0 Lore% 61 Gallery% 57 Achievement% 58 Wizard Run 0 Options --------- Layout 2 ASCII 0 Keyboard 0 Movement Mouse Keybinds 1 Fullscreen 2 Font 20/X11 Map View 64x51 Zoom Use 0% Tactical HUD 1 Map Filters NONE Filters NONE Steam 1 RUN: d8dc6b9d-0f7d-4916-ad3f-c61d5187e6c5